[Event "11th Tamil Nadu Circuit-IM 2024"]
[Site "Chennai"]
[Date "2024.01.11"]
[Round "5.3"]
[White "Lokesh, N.."]
[Black "Harsh Suresh"]
[Result "1/2-1/2"]
[ECO "C55"]
[WhiteElo "2140"]
[BlackElo "2361"]
[Annotator "RC"]
[PlyCount "124"]
[EventDate "2024.01.09"]
[EventType "tourn"]
[EventCountry "IND"]
[SourceTitle "playchess.com"]
[Source "ChessBase"]
[SourceQuality "1"]
[TimeControl "5400+30"]

1. e4 {[%emt 0:00:04]} e5 {[%emt 0:01:28]} 2. Nf3 {[%emt 0:00:09]} Nc6 {[%emt 0:00:08]} 3. Bc4 {[%emt 0:00:31]} Nf6 {[%emt 0:00:12]} 4. d3 {[%emt 0:00:06]} h6 {[%emt 0:00:10]} 5. O-O {[%emt 0:02:27]} d6 {[%emt 0:00:12]} 6. c3 {[%emt 0:05:38]} g5 {[%emt 0:01:54]} 7. d4 {[%emt 0:14:47]} Qe7 {[%emt 0:22:51]} 8. Re1 {[%emt 0:05:20]} Bg7 {[%emt 0:00:57]} 9. Na3 {[%emt 0:02:25]} g4 {[%emt 0:07:45]} 10. dxe5 {[%emt 0:05:23]} dxe5 {[%emt 0:01:02]} 11. Nd2 {[%emt 0:00:16]} Bd7 {[%emt 0:07:03]} 12. Nc2 {[%emt 0:04:37]} O-O-O {[%emt 0:13:50]} 13. Ne3 {[%emt 0:02:27]} Be6 {[%emt 0:03:02]} 14. Qa4 {[%emt 0:02:04]} Nd7 {[%emt 0:01:08]} 15. Bb5 {[%emt 0:03:23]} Nb6 {[%emt 0:13:50]} 16. Qc2 {[%emt 0:01:50]} h5 {[%emt 0:01:14]} 17. a4 {[%emt 0:00:57]} a6 {[%emt 0:00:27]} 18. Bf1 {[%emt 0:14:00]} h4 {[%emt 0:01:49]} 19. a5 {[%emt 0:00:22]} Nd7 {[%emt 0:00:19]} 20. b4 {[%emt 0:01:52]} g3 {[%emt 0:03:54]} 21. Nf3 {[%emt 0:04:35]} gxf2+ {[%emt 0:03:12]} 22. Qxf2 {[%emt 0:00:28]} Nf6 {[%emt 0:00:10]} 23. Ng5 {[%emt 0:01:10]} Bh6 {[%emt 0:03:33]} 24. Nf5 {[%emt 0:01:01]} Bxf5 {[%emt 0:00:02]} 25. Qxf5+ {[%emt 0:00:06]} Kb8 {[%emt 0:00:02]} 26. Bc4 {[%emt 0:01:17]} Rdf8 {[%emt 0:03:15]} 27. Rf1 {[%emt 0:14:47]} Ne8 {[%emt 0:01:08]} 28. Nxf7 {[%emt 0:04:26]} Bxc1 {[%emt 0:00:22]} 29. Raxc1 {[%emt 0:00:51]} Nd6 {[%emt 0:00:08]} 30. Qe6 {[%emt 0:02:08]} Nxc4 {[%emt 0:00:27]} 31. Qxe7 {[%emt 0:02:35]} Nxe7 {[%emt 0:00:05]} 32. Nxh8 {[%emt 0:00:03]} Rxh8 {[%emt 0:00:05]} 33. Rf6 {[%emt 0:03:08]} Rg8 {[%emt 0:01:00]} 34. Kf2 {[%emt 0:01:18]} Nd2 {[%emt 0:04:35]} 35. Re1 {[%emt 0:00:37]} Rg4 {[%emt 0:00:08]} 36. Rf8+ {[%emt 0:00:15]} Ka7 {[%emt 0:00:01]} 37. Re2 {[%emt 0:00:57]} Ng6 {[%emt 0:01:44]} 38. Rf5 {[%emt 0:00:14]} Nc4 {[%emt 0:01:21]} 39. g3 {[%emt 0:00:29]} hxg3+ {[%emt 0:00:55]} 40. hxg3 {[%emt 0:00:01]} Ne7 {[%emt 0:01:03]} 41. Rf7 {[%emt 0:00:16]} Nc8 {[%emt 0:00:06]} 42. Rxc7 {[%emt 0:00:44]} N8d6 {[%emt 0:00:01]} 43. Kf3 {[%emt 0:00:29]} Rxe4 {[%emt 0:01:35]} 44. Rxe4 {[%emt 0:00:30]} Nd2+ {[%emt 0:00:01]} 45. Ke3 {[%emt 0:00:34]} N2xe4 {[%emt 0:00:03]} 46. g4 {[%emt 0:00:25]} Nf6 {[%emt 0:01:03]} 47. Rg7 {[%emt 0:00:54]} Nd5+ {[%emt 0:00:03]} 48. Kd3 {[%emt 0:00:37]} Nf4+ {[%emt 0:01:22]} 49. Kc2 {[%emt 0:00:20]} e4 {[%emt 0:00:14]} 50. Re7 {[%emt 0:00:12]} Kb8 {[%emt 0:01:47]} 51. g5 {[%emt 0:00:06]} Kc8 {[%emt 0:00:06]} 52. g6 {[%emt 0:00:44]} Nf5 {[%emt 0:00:04]} 53. Rxe4 {[%emt 0:01:26]} Nxg6 {[%emt 0:00:02]} 54. Kb3 {[%emt 0:00:31]} Nge7 {[%emt 0:00:14]} 55. Re6 {[%emt 0:00:27]} Kd7 {[%emt 0:00:08]} 56. Rf6 {[%emt 0:00:09]} Nd6 {[%emt 0:00:16]} 57. c4 {[%emt 0:00:49]} Nc6 {[%emt 0:00:34]} 58. Rh6 {[%emt 0:00:27]} Kc7 {[%emt 0:00:26]} 59. Rh7+ {[%emt 0:00:22]} Kc8 {[%emt 0:00:08]} 60. Rh8+ {[%emt 0:00:38]} Kc7 {[%emt 0:00:06]} 61. Rh7+ {[%emt 0:00:07]} Kc8 {[%emt 0:00:03]} 62. Rh8+ {[%emt 0:00:15]} Kc7 {[%emt 0:00:02]} 1/2-1/2

[Event "11th Tamil Nadu Circuit-IM 2024"]
[Site "Chennai"]
[Date "2024.01.11"]
[Round "5.4"]
[White "Ziatdinov, Raset"]
[Black "Priyanka, K."]
[Result "1/2-1/2"]
[ECO "A58"]
[WhiteElo "2100"]
[BlackElo "2068"]
[Annotator "TA"]
[PlyCount "84"]
[EventDate "2024.01.09"]
[EventType "tourn"]
[EventCountry "IND"]
[SourceTitle "playchess.com"]
[Source "ChessBase"]
[SourceQuality "1"]
[TimeControl "5400+30"]

{[%evp 13,84,20,47,0,0,-21,43,0,0,0,0,0,0,-37,-9,-43,-46,-25,-41,-100,-90,-74,-59,-58,-66,-58,-73,-75,-56,-63,2,-40,0,0,0,0,0,0,0,0,0,0,0,0,0,0,0,0,0,0,0,0,0,0,0,0,0,0,0,0,0,0,0,0,0,0,0,0,0,0,0,0,0]} 1. d4 {[%emt 0:00:02]} Nf6 {[%emt 0:00:25]} 2. c4 {[%emt 0:00:05][%cal Bc2c4,Bc4b5][%mdl 32]} c5 {[%emt 0:01:03]} 3. d5 {[%emt 0:00:07]} b5 {[%emt 0:00:05]} 4. cxb5 {[%emt 0:00:12]} a6 {[%emt 0:00:05]} 5. bxa6 {[%emt 0:00:20]} g6 {[%emt 0:00:07]} 6. g3 {[%emt 0:00:49]} d6 {[%emt 0:01:09]} 7. Bg2 {[%emt 0:01:29]} Bg7 {[%emt 0:00:17]} 8. h4 {[%emt 0:00:39]} (8. Nf3 $14 {was preferrable.}) 8... Nxa6 $11 {[%emt 0:03:09]} 9. Nc3 {[%emt 0:00:15]} h5 {[%emt 0:07:24]} (9... Qa5 $11) 10. Nh3 {[%emt 0:01:16] White is slightly better.} O-O {[%emt 0:03:45]} 11. O-O {[%emt 0:00:23]} Bd7 {[%emt 0:01:30]} 12. Rb1 {[%emt 0:01:35]} Qa5 {[%emt 0:02:01]} 13. Bg5 {[%emt 0:01:05]} Rfb8 {[%emt 0:02:07]} 14. Qc1 {[%emt 0:01:56]} Nc7 {[%emt 0:04:23]} 15. Nf4 {[%emt 0:37:00][%cal Oa2a4]} Nb5 {[%emt 0:08:24]} 16. Nxb5 {[%emt 0:03:07]} (16. Qc2 $15) 16... Qxb5 $17 {[%emt 0:01:15]} 17. a3 {[%emt 0:02:13]} Bf5 {[%emt 0:14:17]} 18. Bxf6 $1 {[%emt 0:00:08]} Bxf6 {[%emt 0:00:14]} 19. e4 {[%emt 0:00:06]} Bd7 {[%emt 0:00:15][%mdl 1024] Black has compensation.} 20. b3 {[%emt 0:00:48]} Qa6 {[%emt 0:09:06]} 21. a4 {[%emt 0:00:12]} Rb4 {[%emt 0:07:52]} (21... Rb6 $15) 22. Rd1 {[%emt 0:11:21]} Rab8 {[%emt 0:00:00]} 23. e5 $1 {[%emt 0:04:49] The position is equal.} Bxe5 {[%emt 0:03:49][%cal Od7f5] [#] ...Bf5! is the strong threat.} ({Much worse is} 23... dxe5 $6 24. Nd3 Qd6 (24... Rxb3 $2 {too greedy.} 25. Rxb3 Rxb3 26. Nxc5 $18) 25. Nxb4 (25. Qxc5 Rxb3 26. Rxb3 Rxb3 $17) (25. Nxc5 Bf5 $17) 25... Rxb4 26. a5 $18) 24. Nd3 {[%emt 0:00:06]} Rxb3 {[%emt 0:16:56]} 25. Rxb3 {[%emt 0:00:08]} Rxb3 {[%emt 0:00:04]} 26. Nxe5 {[%emt 0:00:07]} dxe5 {[%emt 0:00:03]} 27. Qxc5 {[%emt 0:00:09]} Qxa4 {[%emt 0:00:30][%cal Ob3g3]} 28. Qxe7 {[%emt 0:00:51][%cal Od1c1]} Rxg3 {[%emt 0:00:23]} 29. fxg3 {[%emt 0:02:27] [#] Hoping for Rb1.} Qxd1+ $11 {[%emt 0:00:07][%mdl 4096] Endgame. KQB-KQB} 30. Kh2 {[%emt 0:00:05]} Qg4 {[%emt 0:02:25]} 31. Qxe5 {[%emt 0:00:09]} Qf5 {[%emt 0:00:28]} 32. Qc3 {[%emt 0:10:52]} Qg4 {[%emt 0:02:03]} 33. Kg1 {[%emt 0:00:33]} Qf5 {[%emt 0:02:34]} 34. Bf3 {[%emt 0:01:26]} g5 {[%emt 0:03:04]} 35. hxg5 {[%emt 0:00:55]} Qxg5 {[%emt 0:00:07]} 36. Kf2 {[%emt 0:00:38]} h4 {[%emt 0:00:49]} 37. gxh4 {[%emt 0:00:10]} Qxh4+ {[%emt 0:00:09]} 38. Ke2 {[%emt 0:01:37]} Bb5+ {[%emt 0:01:37]} 39. Ke3 {[%emt 0:01:02]} Qh6+ {[%emt 0:00:38]} 40. Kf2 {[%emt 0:00:29]} Qh4+ {[%emt 0:00:43]} 41. Kg2 {[%emt 0:00:59]} Qg5+ {[%emt 0:00:09]} 42. Kh2 {[%emt 0:00:44]} Qh4+ {[%emt 0:00:56] Weighted Error Value: White=0.09 (flawless) /Black=0.11 (very precise) .  Mistake:       	White=1     	Black=2      Inaccurate:     	White=4     	Black=2      OK:         	White=13    	Black=14     Best:        	White=4     	---        Strong:       	White=2     	---} 1/2-1/2

[Event "11th Tamil Nadu Circuit-IM 2024"]
[Site "Chennai"]
[Date "2024.01.11"]
[Round "5.5"]
[White "Podolchenko, Evgeniy"]
[Black "Khusenkhojaev, Muhammad"]
[Result "1/2-1/2"]
[ECO "D82"]
[WhiteElo "2357"]
[BlackElo "2379"]
[Annotator "RC"]
[PlyCount "99"]
[EventDate "2024.01.09"]
[EventType "tourn"]
[EventCountry "IND"]
[SourceTitle "playchess.com"]
[Source "ChessBase"]
[SourceQuality "1"]
[TimeControl "5400+30"]

1. d4 {[%emt 0:00:03]} Nf6 {[%emt 0:00:21]} 2. c4 {[%emt 0:00:03]} g6 {[%emt 0:00:07]} 3. Nc3 {[%emt 0:00:03]} d5 {[%emt 0:00:06]} 4. Bf4 {[%emt 0:00:08]} Bg7 {[%emt 0:00:07]} 5. e3 {[%emt 0:00:17]} c5 {[%emt 0:00:06]} 6. dxc5 {[%emt 0:00:05]} Qa5 {[%emt 0:00:07]} 7. Rc1 {[%emt 0:00:10]} Nbd7 {[%emt 0:00:25]} 8. cxd5 {[%emt 0:01:43]} O-O {[%emt 0:00:13]} 9. Qa4 {[%emt 0:17:51]} Qxa4 {[%emt 0:07:57]} 10. Nxa4 {[%emt 0:00:06]} Nxd5 {[%emt 0:00:06]} 11. Bg3 {[%emt 0:01:52]} Ne5 {[%emt 0:00:46]} 12. Nf3 {[%emt 0:03:57]} Nxf3+ {[%emt 0:00:31]} 13. gxf3 {[%emt 0:00:03]} Bd7 {[%emt 0:00:18]} 14. Bc4 {[%emt 0:05:05]} Bxa4 {[%emt 0:09:40]} 15. Bxd5 {[%emt 0:01:00]} Bxb2 {[%emt 0:00:09]} 16. Rb1 {[%emt 0:00:45]} Bc3+ {[%emt 0:00:15]} 17. Kf1 {[%emt 0:01:44]} Rac8 {[%emt 0:01:10]} 18. Bxb7 {[%emt 0:06:41]} Rxc5 {[%emt 0:00:08]} 19. Kg2 {[%emt 0:03:53]} Rd8 {[%emt 0:00:33]} 20. Rhc1 {[%emt 0:01:20]} a5 {[%emt 0:07:40]} 21. Ba6 {[%emt 0:07:12]} f6 {[%emt 0:01:18]} 22. Rb8 {[%emt 0:02:40]} Rxb8 {[%emt 0:00:08]} 23. Bxb8 {[%emt 0:00:02]} Kf7 {[%emt 0:02:51]} 24. Ba7 {[%emt 0:08:00]} Rg5+ {[%emt 0:03:23]} 25. Kf1 {[%emt 0:00:10]} Bb4 {[%emt 0:00:13]} 26. Bc4+ {[%emt 0:02:28]} Kg7 {[%emt 0:00:47]} 27. f4 {[%emt 0:02:49]} Rh5 {[%emt 0:00:38]} 28. Kg1 {[%emt 0:00:08]} h6 {[%emt 0:13:37]} 29. Be2 {[%emt 0:08:29]} Rd5 {[%emt 0:00:33]} 30. Bd4 {[%emt 0:00:03]} Bb5 {[%emt 0:07:48]} 31. Bf3 {[%emt 0:02:50]} Rd8 {[%emt 0:02:56]} 32. Rc7 {[%emt 0:00:50]} Be8 {[%emt 0:00:12]} 33. Ra7 {[%emt 0:01:04]} a4 {[%emt 0:00:30]} 34. a3 {[%emt 0:07:59]} Bxa3 {[%emt 0:00:29]} 35. Bd1 {[%emt 0:00:01]} Bc5 {[%emt 0:04:57]} 36. Bxc5 {[%emt 0:00:04]} Rxd1+ {[%emt 0:00:11]} 37. Kg2 {[%emt 0:00:01]} Bc6+ {[%emt 0:02:40]} 38. f3 {[%emt 0:00:17]} Rd7 {[%emt 0:02:11]} 39. Rxd7 {[%emt 0:00:06]} Bxd7 {[%emt 0:00:03]} 40. Bxe7 {[%emt 0:00:06]} Kf7 {[%emt 0:00:35]} 41. Ba3 {[%emt 0:00:03]} f5 {[%emt 0:00:30]} 42. e4 {[%emt 0:00:42]} Bc6 {[%emt 0:00:03]} 43. exf5 {[%emt 0:00:04]} gxf5 {[%emt 0:00:23]} 44. Kf2 {[%emt 0:00:01]} Ke6 {[%emt 0:00:24]} 45. Ke3 {[%emt 0:00:02]} Kd5 {[%emt 0:00:36]} 46. Kd3 {[%emt 0:00:01]} Bb5+ {[%emt 0:00:13]} 47. Kc3 {[%emt 0:00:02]} Be2 {[%emt 0:00:13]} 48. Bf8 {[%emt 0:00:05]} h5 {[%emt 0:00:14]} 49. h4 {[%emt 0:00:04]} Bxf3 {[%emt 0:00:33]} 50. Kb2 {[%emt 0:00:05]} 1/2-1/2

[Event "11th Tamil Nadu Circuit-IM 2024"]
[Site "Chennai"]
[Date "2024.01.12"]
[Round "6.1"]
[White "Wagh Suyog"]
[Black "Khusenkhojaev, Muhammad"]
[Result "0-1"]
[ECO "E11"]
[WhiteElo "2266"]
[BlackElo "2379"]
[Annotator "RC"]
[PlyCount "196"]
[EventDate "2024.01.09"]
[EventType "tourn"]
[EventCountry "IND"]
[SourceTitle "playchess.com"]
[Source "ChessBase"]
[SourceQuality "1"]
[TimeControl "5400+30"]

1. d4 {[%emt 0:00:02]} Nf6 {[%emt 0:03:53]} 2. c4 {[%emt 0:00:18]} e6 {[%emt 0:00:24]} 3. g3 {[%emt 0:00:46]} Bb4+ {[%emt 0:01:16]} 4. Bd2 {[%emt 0:03:18]} Be7 {[%emt 0:00:14]} 5. Bg2 {[%emt 0:00:55]} d5 {[%emt 0:00:06]} 6. Nf3 {[%emt 0:00:36]} O-O {[%emt 0:00:14]} 7. Qc2 {[%emt 0:02:43]} c6 {[%emt 0:00:41]} 8. O-O {[%emt 0:00:22]} Nbd7 {[%emt 0:00:12]} 9. Rd1 {[%emt 0:16:54]} a5 {[%emt 0:04:31]} 10. a4 {[%emt 0:05:36]} b6 {[%emt 0:02:57]} 11. cxd5 {[%emt 0:04:29]} cxd5 {[%emt 0:01:17]} 12. Nc3 {[%emt 0:00:01]} Ba6 {[%emt 0:00:25]} 13. Nb5 {[%emt 0:00:12]} Rc8 {[%emt 0:00:49]} 14. Qb3 {[%emt 0:00:11]} Ne4 {[%emt 0:01:42]} 15. Rac1 {[%emt 0:02:43]} Nxd2 {[%emt 0:01:32]} 16. Nxd2 {[%emt 0:00:07]} Bb4 {[%emt 0:00:20]} 17. Nf3 {[%emt 0:00:36]} Rxc1 {[%emt 0:01:14]} 18. Rxc1 {[%emt 0:00:02]} Qb8 {[%emt 0:00:10]} 19. e3 {[%emt 0:01:10]} Rc8 {[%emt 0:00:38]} 20. Qd1 {[%emt 0:00:09]} Rxc1 {[%emt 0:01:38]} 21. Qxc1 {[%emt 0:00:02]} Qc8 {[%emt 0:00:12]} 22. Qxc8+ {[%emt 0:01:12]} Bxc8 {[%emt 0:00:05]} 23. Bf1 {[%emt 0:00:16]} Bb7 {[%emt 0:03:42]} 24. Bd3 {[%emt 0:00:44]} f6 {[%emt 0:01:00]} 25. Kf1 {[%emt 0:01:37]} Kf7 {[%emt 0:00:47]} 26. Ne1 {[%emt 0:02:10]} g6 {[%emt 0:00:44]} 27. Nc2 {[%emt 0:00:38]} Be7 {[%emt 0:00:21]} 28. Nc3 {[%emt 0:03:04]} Nb8 {[%emt 0:01:02]} 29. e4 {[%emt 0:01:11]} dxe4 {[%emt 0:02:26]} 30. Bxe4 {[%emt 0:00:45]} Bc8 {[%emt 0:00:43]} 31. Ne3 {[%emt 0:03:21]} Bd7 {[%emt 0:05:19]} 32. Nc4 {[%emt 0:01:01]} Bd8 {[%emt 0:00:39]} 33. Ke2 {[%emt 0:01:21]} Na6 {[%emt 0:01:39]} 34. Ke3 {[%emt 0:01:22]} Nb4 {[%emt 0:00:27]} 35. Nd6+ {[%emt 0:11:40]} Ke7 {[%emt 0:01:32]} 36. Nc4 {[%emt 0:00:18]} Kf7 {[%emt 0:00:10]} 37. Nd6+ {[%emt 0:00:06]} Ke7 {[%emt 0:00:05]} 38. Nc4 {[%emt 0:00:02]} Be8 {[%emt 0:01:26]} 39. b3 {[%emt 0:04:06]} Bf7 {[%emt 0:02:01]} 40. Nb5 {[%emt 0:07:05]} Be8 {[%emt 0:01:59]} 41. Nc3 {[%emt 0:01:34]} f5 {[%emt 0:02:09]} 42. Bh1 {[%emt 0:06:24]} g5 {[%emt 0:00:32]} 43. d5 {[%emt 0:12:27]} exd5 {[%emt 0:08:54]} 44. Nxd5+ {[%emt 0:00:03]} Nxd5+ {[%emt 0:00:49]} 45. Bxd5 {[%emt 0:00:02]} Bc7 {[%emt 0:03:09]} 46. Kd4 {[%emt 0:05:30]} Kf6 {[%emt 0:00:05]} 47. Bf3 {[%emt 0:01:55]} g4 {[%emt 0:01:45]} 48. Bb7 {[%emt 0:00:15]} h5 {[%emt 0:02:30]} 49. Ne3 {[%emt 0:02:44]} Be5+ {[%emt 0:00:15]} 50. Kd3 {[%emt 0:00:04]} Kg5 {[%emt 0:03:35]} 51. f4+ {[%emt 0:00:39]} gxf3 {[%emt 0:00:22]} 52. Bxf3 {[%emt 0:00:02]} Bd6 {[%emt 0:03:15]} 53. Nd5 {[%emt 0:00:53]} Bc5 {[%emt 0:00:25]} 54. h4+ {[%emt 0:00:57]} Kh6 {[%emt 0:00:33]} 55. Ne3 {[%emt 0:00:36]} Bd7 {[%emt 0:05:33]} 56. Ke2 {[%emt 0:00:15]} b5 {[%emt 0:02:47]} 57. axb5 {[%emt 0:00:33]} Bxb5+ {[%emt 0:00:04]} 58. Kf2 {[%emt 0:00:21]} Kg6 {[%emt 0:00:00]} 59. Bd5 {[%emt 0:00:23]} Kf6 {[%emt 0:01:06]} 60. Kf3 {[%emt 0:00:17]} Ke5 {[%emt 0:00:38]} 61. Bf7 {[%emt 0:01:21]} Bc6+ {[%emt 0:00:05]} 62. Ke2 {[%emt 0:00:09]} f4 {[%emt 0:00:20]} 63. gxf4+ {[%emt 0:00:39]} Kxf4 {[%emt 0:00:05]} 64. Nd5+ {[%emt 0:00:41]} Kg3 {[%emt 0:00:02]} 65. Kd3 {[%emt 0:00:32]} Kxh4 {[%emt 0:01:31]} 66. Kc4 {[%emt 0:00:29]} Bd6 {[%emt 0:03:58]} 67. Nf6 {[%emt 0:00:30]} Bf3 {[%emt 0:00:13]} 68. Kd3 {[%emt 0:00:32]} Bc5 {[%emt 0:04:08]} 69. Nd5 {[%emt 0:00:31]} Kg3 {[%emt 0:00:33]} 70. Kc4 {[%emt 0:00:16]} Bf2 {[%emt 0:00:52]} 71. Bxh5 {[%emt 0:00:37]} Bxh5 {[%emt 0:00:06]} 72. Kb5 {[%emt 0:00:17]} Be1 {[%emt 0:00:13]} 73. Ne3 {[%emt 0:00:42]} Be8+ {[%emt 0:00:36]} 74. Ka6 {[%emt 0:00:28]} Bf7 {[%emt 0:00:28]} 75. Nf5+ {[%emt 0:00:25]} Kf4 {[%emt 0:01:46]} 76. Nd4 {[%emt 0:00:17]} Be8 {[%emt 0:00:38]} 77. Ne6+ {[%emt 0:00:54]} Ke3 {[%emt 0:01:44]} 78. Kb6 {[%emt 0:00:31]} Bf7 {[%emt 0:01:23]} 79. Nc5 {[%emt 0:00:06]} Bd5 {[%emt 0:00:27]} 80. Kb5 {[%emt 0:00:48]} Ke2 {[%emt 0:00:33]} 81. Ka4 {[%emt 0:00:38]} Bb4 {[%emt 0:00:41]} 82. Kb5 {[%emt 0:00:23]} Kd2 {[%emt 0:00:16]} 83. Na6 {[%emt 0:00:36]} Kc3 {[%emt 0:00:14]} 84. Nc5 {[%emt 0:00:28]} Bxc5 {[%emt 0:00:41]} 85. Kxa5 {[%emt 0:00:10]} Bxb3 {[%emt 0:00:13]} 86. Kb5 {[%emt 0:00:05]} Kd4 {[%emt 0:00:16]} 87. Kc6 {[%emt 0:00:02]} Ba4+ {[%emt 0:00:16]} 88. Kc7 {[%emt 0:00:01]} Kd5 {[%emt 0:00:16]} 89. Kd8 {[%emt 0:00:02]} Kd6 {[%emt 0:00:52]} 90. Kc8 {[%emt 0:00:03]} Bb5 {[%emt 0:01:39]} 91. Kd8 {[%emt 0:00:46]} Bb6+ {[%emt 0:00:18]} 92. Kc8 {[%emt 0:00:01]} Ba6+ {[%emt 0:00:41]} 93. Kb8 {[%emt 0:00:07]} Kc6 {[%emt 0:00:15]} 94. Ka8 {[%emt 0:00:03]} Bc8 {[%emt 0:00:16]} 95. Kb8 {[%emt 0:00:03]} Bg4 {[%emt 0:00:11]} 96. Ka8 {[%emt 0:00:02]} Be3 {[%emt 0:00:10]} 97. Kb8 {[%emt 0:00:03]} Kb6 {[%emt 0:00:12]} 98. Ka8 {[%emt 0:00:01]} Bf2 {[%emt 0:00:29]} 0-1

[Event "11th Tamil Nadu Circuit-IM 2024"]
[Site "Chennai"]
[Date "2024.01.12"]
[Round "6.2"]
[White "Priyanka, K."]
[Black "Podolchenko, Evgeniy"]
[Result "1/2-1/2"]
[ECO "B01"]
[WhiteElo "2068"]
[BlackElo "2357"]
[Annotator "RC"]
[PlyCount "129"]
[EventDate "2024.01.09"]
[EventType "tourn"]
[EventCountry "IND"]
[SourceTitle "playchess.com"]
[Source "ChessBase"]
[SourceQuality "1"]
[TimeControl "5400+30"]

1. e4 {[%emt 0:00:18]} d5 {[%emt 0:02:42]} 2. exd5 {[%emt 0:00:30]} Qxd5 {[%emt 0:00:03]} 3. Nc3 {[%emt 0:00:26]} Qa5 {[%emt 0:00:03]} 4. Bc4 {[%emt 0:02:38]} Nf6 {[%emt 0:00:27]} 5. d4 {[%emt 0:00:40]} Bg4 {[%emt 0:00:22]} 6. f3 {[%emt 0:05:17]} Bd7 {[%emt 0:00:02]} 7. Nge2 {[%emt 0:04:31]} e6 {[%emt 0:04:17]} 8. Bd2 {[%emt 0:06:51]} Qb6 {[%emt 0:00:15]} 9. Bb3 {[%emt 0:01:47]} Nc6 {[%emt 0:06:55]} 10. Be3 {[%emt 0:13:09]} O-O-O {[%emt 0:08:28]} 11. Qd2 {[%emt 0:03:15]} Qa6 {[%emt 0:07:11]} 12. O-O-O {[%emt 0:02:25]} Na5 {[%emt 0:00:39]} 13. Qd3 {[%emt 0:05:43]} Nxb3+ {[%emt 0:04:25]} 14. axb3 {[%emt 0:00:17]} Qxd3 {[%emt 0:00:08]} 15. Rxd3 {[%emt 0:00:10]} Bc6 {[%emt 0:00:17]} 16. Rdd1 {[%emt 0:12:40]} Be7 {[%emt 0:03:55]} 17. Nf4 {[%emt 0:01:19]} b6 {[%emt 0:01:08]} 18. Nd3 {[%emt 0:01:41]} Nd7 {[%emt 0:01:22]} 19. Ne5 {[%emt 0:08:34]} Nxe5 {[%emt 0:00:53]} 20. dxe5 {[%emt 0:00:07]} Rxd1+ {[%emt 0:01:41]} 21. Rxd1 {[%emt 0:00:06]} g5 {[%emt 0:00:57]} 22. Ne4 {[%emt 0:09:59]} g4 {[%emt 0:10:10]} 23. Bg5 {[%emt 0:04:04]} Bxe4 {[%emt 0:02:38]} 24. Bxe7 {[%emt 0:00:08]} gxf3 {[%emt 0:00:03]} 25. gxf3 {[%emt 0:00:06]} Bxf3 {[%emt 0:00:03]} 26. Rg1 {[%emt 0:00:38]} Bh5 {[%emt 0:00:24]} 27. Bf6 {[%emt 0:00:22]} Re8 {[%emt 0:00:02]} 28. Kd2 {[%emt 0:00:30]} a5 {[%emt 0:01:08]} 29. h4 {[%emt 0:01:23]} Bg6 {[%emt 0:00:21]} 30. c4 {[%emt 0:05:08]} Kb7 {[%emt 0:01:54]} 31. Kc3 {[%emt 0:00:26]} c5 {[%emt 0:04:08]} 32. Rd1 {[%emt 0:01:28]} Kc7 {[%emt 0:00:02]} 33. Rh1 {[%emt 0:00:28]} Bf5 {[%emt 0:01:27]} 34. Rg1 {[%emt 0:01:35]} h5 {[%emt 0:00:02]} 35. Rg5 {[%emt 0:01:07]} Bg6 {[%emt 0:00:03]} 36. Rg1 {[%emt 0:00:10]} Ra8 {[%emt 0:00:08]} 37. Be7 {[%emt 0:00:29]} Kd7 {[%emt 0:01:04]} 38. Bf6 {[%emt 0:00:06]} Rb8 {[%emt 0:00:39]} 39. Rd1+ {[%emt 0:00:19]} Kc7 {[%emt 0:00:02]} 40. Be7 {[%emt 0:02:39]} Re8 {[%emt 0:00:36]} 41. Bg5 {[%emt 0:00:22]} Bf5 {[%emt 0:00:12]} 42. Rf1 {[%emt 0:00:32]} Rg8 {[%emt 0:00:37]} 43. Rd1 {[%emt 0:01:30]} Ra8 {[%emt 0:02:25]} 44. Rf1 {[%emt 0:00:27]} Rb8 {[%emt 0:00:17]} 45. Ra1 {[%emt 0:03:48]} Bh3 {[%emt 0:07:23]} 46. Rh1 {[%emt 0:00:39]} Bg2 {[%emt 0:00:21]} 47. Rg1 {[%emt 0:00:08]} Be4 {[%emt 0:00:07]} 48. Rf1 {[%emt 0:00:10]} Bg6 {[%emt 0:00:07]} 49. Ra1 {[%emt 0:00:41]} Bf5 {[%emt 0:00:06]} 50. Kd2 {[%emt 0:02:54]} Kc6 {[%emt 0:00:38]} 51. Kc3 {[%emt 0:00:18]} Bg4 {[%emt 0:00:13]} 52. Rf1 {[%emt 0:00:15]} Rb7 {[%emt 0:00:13]} 53. Rf2 {[%emt 0:00:17]} b5 {[%emt 0:03:16]} 54. Rd2 {[%emt 0:01:03]} b4+ {[%emt 0:06:17]} 55. Kc2 {[%emt 0:00:05]} Bf5+ {[%emt 0:00:04]} 56. Kc1 {[%emt 0:00:18]} Rd7 {[%emt 0:00:10]} 57. Rxd7 {[%emt 0:01:13]} Kxd7 {[%emt 0:00:01]} 58. Be3 {[%emt 0:00:21]} Kc6 {[%emt 0:00:02]} 59. Bg5 {[%emt 0:00:41]} Bd3 {[%emt 0:00:15]} 60. Kd2 {[%emt 0:00:25]} Bf1 {[%emt 0:00:56]} 61. Ke1 {[%emt 0:00:19]} Bd3 {[%emt 0:01:40]} 62. Kd2 {[%emt 0:00:05]} Bb1 {[%emt 0:00:10]} 63. Bd8 {[%emt 0:00:54]} Ba2 {[%emt 0:00:11]} 64. Bxa5 {[%emt 0:00:19]} Bxb3 {[%emt 0:00:02]} 65. Kd3 {[%emt 0:00:08]} 1/2-1/2

[Event "11th Tamil Nadu Circuit-IM 2024"]
[Site "Chennai"]
[Date "2024.01.12"]
[Round "6.3"]
[White "Harsh Suresh"]
[Black "Ziatdinov, Raset"]
[Result "1-0"]
[ECO "C85"]
[WhiteElo "2361"]
[BlackElo "2100"]
[Annotator "RC"]
[PlyCount "71"]
[EventDate "2024.01.09"]
[EventType "tourn"]
[EventCountry "IND"]
[SourceTitle "playchess.com"]
[Source "ChessBase"]
[SourceQuality "1"]
[TimeControl "5400+30"]

1. e4 {[%emt 0:00:09]} e5 {[%emt 0:00:07]} 2. Nf3 {[%emt 0:00:05]} Nc6 {[%emt 0:00:04]} 3. Bb5 {[%emt 0:00:05]} a6 {[%emt 0:00:04]} 4. Ba4 {[%emt 0:00:04]} Nf6 {[%emt 0:00:03]} 5. O-O {[%emt 0:00:07]} Be7 {[%emt 0:00:04]} 6. Bxc6 {[%emt 0:00:06]} dxc6 {[%emt 0:00:07]} 7. d3 {[%emt 0:00:04]} Nd7 {[%emt 0:00:24]} 8. Be3 {[%emt 0:00:05]} O-O {[%emt 0:00:33]} 9. Nbd2 {[%emt 0:00:04]} Re8 {[%emt 0:00:36]} 10. Nc4 {[%emt 0:00:22]} Bf6 {[%emt 0:00:33]} 11. Bd2 {[%emt 0:01:13]} Nf8 {[%emt 0:00:52]} 12. Bc3 {[%emt 0:00:14]} Ng6 {[%emt 0:00:20]} 13. a4 {[%emt 0:00:42]} c5 {[%emt 0:05:12]} 14. h3 {[%emt 0:06:17]} Bd7 {[%emt 0:00:21]} 15. Nh2 {[%emt 0:02:06]} b5 {[%emt 0:02:16]} 16. axb5 {[%emt 0:00:13]} axb5 {[%emt 0:00:05]} 17. Rxa8 {[%emt 0:00:06]} Qxa8 {[%emt 0:00:06]} 18. Ne3 {[%emt 0:00:04]} Bc6 {[%emt 0:04:02]} 19. b3 {[%emt 0:13:14]} Bg5 {[%emt 0:02:58]} 20. Nf5 {[%emt 0:28:29]} c4 {[%emt 0:10:46]} 21. Qg4 {[%emt 0:04:30]} Bf6 {[%emt 0:00:49]} 22. Qf3 {[%emt 0:00:17]} cxd3 {[%emt 0:01:10]} 23. cxd3 {[%emt 0:00:30]} Bg5 {[%emt 0:08:41]} 24. Ra1 {[%emt 0:05:30]} Qd8 {[%emt 0:00:34]} 25. g3 {[%emt 0:00:25]} Ne7 {[%emt 0:07:59]} 26. Nxg7 {[%emt 0:13:02]} Kxg7 {[%emt 0:00:22]} 27. Bxe5+ {[%emt 0:00:06]} f6 {[%emt 0:06:49]} 28. Bb2 {[%emt 0:00:19]} Ng6 {[%emt 0:05:10]} 29. h4 {[%emt 0:00:39]} Bh6 {[%emt 0:00:38]} 30. Ra6 {[%emt 0:05:45]} Re6 {[%emt 0:05:41]} 31. Qf5 {[%emt 0:06:21]} Qd6 {[%emt 0:03:21]} 32. Ng4 {[%emt 0:01:07]} Ne7 {[%emt 0:08:50]} 33. Qh5 {[%emt 0:01:43]} Rxe4 {[%emt 0:13:22]} 34. Qxh6+ {[%emt 0:02:17]} Kg8 {[%emt 0:00:19]} 35. dxe4 {[%emt 0:00:06]} Qd1+ {[%emt 0:00:12]} 36. Kh2 {[%emt 0:00:36]} 1-0